Cogmind - Beta 13 @@@ ROGUE MODE // 2024.07.05 @ 21:57:44 Player: GayPredator Result: Destroyed by G-73 Enforcer with Phase Gun Performance ------------- Evolutions (8) 4000 Regions Visited (23) 4600 Robots Destroyed (178) 890 Value Destroyed (7460) 7460 Prototype IDs (32) 640 Alien Tech Used (0) 0 Bonus (9044) 9044 TOTAL SCORE: 26634 Bonus ------- Triggered Max Security 1000 High Alert Combat Kills 1843 Follower Combat Kills 2323 Entered Garrisons 1400 Used RIF Installer 2500 Aligned with FarCom 300 Friendly Fire -322 Cogmind --------- Core Integrity 0/1450 Matter 270/300 Energy 89/100 System Corruption 1% Temperature Cool (10) Movement Flying (35) Location -2/Testing Parts ------- > --- POWER (2) -------- (None) > --- PROPULSION (6) --- Cesium-ion Thruster > --- UTILITY (11) ----- (None) > --- WEAPON (4) ------- (None) > --- INVENTORY (5) ---- Improved Remote Force Field Authchip [R/Combat] Authchip [R/Combat] Cooled Nova Cannon Peak State ------------ > --- POWER ------------ Cooled Antimatter Reactor Light Quantum Reactor > --- PROPULSION ------- Improved Antigrav System Improved Antigrav System Improved Antigrav System Improved Gyrokinetic Inverter Antigrav Array > --- UTILITY ---------- Advanced Heat Sink Large Storage Unit Energy Well Gravity Neutralizer Structural Scanner Advanced Visual Processing Unit Improved Particle Charger Improved Hacking Suite Advanced System Shield Relay Coupler [NC] Improved System Guard > --- WEAPON ----------- Improved Arc Projector Enhanced Quantum Rifle Enhanced Nova Cannon Advanced Remote Datajack > --- INVENTORY -------- Light Particle Reactor Improved Gyrokinetic Inverter Improved Gyrokinetic Inverter Power Amplifier Advanced Signal Interpreter Reaction Control System Centrium Heavy Armor Plating Improved Remote Force Field Hacking Suite Relay Coupler [Specialist] Relay Coupler [Behemoth] Advanced Datajack [Rating: 147] Favorites ----------- Power Light Antimatter Reactor Engine Light Deuterium Engine Power Core Light Nuclear Core Reactor Light Antimatter Reactor Propulsion Gravmag Array Leg Biometal Leg Wheel Wheel Hover Unit Gravmag Array Flight Unit Improved Cesium-ion Thruster Utility Medium Storage Unit Device Gravity Neutralizer Storage Medium Storage Unit Processor Advanced Visual Processing Unit Hackware Improved Hacking Suite Protection Layered Light Armor Plating Weapon Longsword +1 Energy Gun Pulse Rifle Energy Cannon Long-range Proton Cannon Ballistic Gun Light Assault Rifle Launcher Shock Bomb Launcher Special Weapon Improved Remote Datajack Slashing Weapon Longsword +1 Special Melee Weapon Advanced Datajack Build | -11 -10 -10 -9 -9 -9 -8 -8 -8 -8 -8 -8 -6 -6 -6 -6 -5 -5 -4 -4 -3 -2 -2 -2 ------- Run | Yrd Mat Min Mat Min Exi Min Mat Gar Sto Gar Rec Fac Gar Fac Gar Fac Gar Fac Gar Res Res Gar Tes Slots Evolved 16 | . . . 2 . . . 2 . . . . 4 . . . 2 . 2 . 2 2 . . Power 1 | . . . . . . . . . . . . . . . . 1 . . . . . . . Propulsion 4 | . . . 1 . . . 1 . . . . 1 . . . . . 1 . . . . . Utility 9 | . . . 1 . . . . . . . . 3 . . . 1 . 1 . 2 1 . . Weapon 2 | . . . . . . . 1 . . . . . . . . . . . . . 1 . . Parts Attached 320 | 7 12 26 22 . 1 . 24 7 11 20 2 5 10 12 1 26 9 15 16 37 18 35 4 Power 33 | 1 . 1 2 . . . 3 1 1 3 . . 1 . 1 3 1 2 5 3 1 4 . Engine 13 | 1 . 1 2 . . . 3 . 1 2 . . . . . 1 1 1 . . . . . Core 6 | . . . . . . . . 1 . 1 . . 1 . 1 2 . . . . . . . Reactor 14 | . . . . . . . . . . . . . . . . . . 1 5 3 1 4 . Propulsion 73 | 2 3 9 12 . . . 6 2 1 . . 1 . 3 . 9 . 2 . 11 1 9 2 Treads . | . . . . . . . . . . . . . . . . . . . . . . . . Leg 2 | . . . 1 . . . . . . . . . . . . . . . . . . 1 . Wheel 13 | 2 3 4 2 . . . 2 . . . . . . . . . . . . . . . . Hover 22 | . . . . . . . . . . . . . . . . 6 . 2 . 11 1 2 . Flight 36 | . . 5 9 . . . 4 2 1 . . 1 . 3 . 3 . . . . . 6 2 Utility 142 | 2 4 12 5 . . . 7 3 3 16 2 4 9 8 . 6 2 8 11 17 9 14 . Device 81 | 1 1 9 1 . . . 5 3 3 16 2 2 6 5 . 4 1 4 2 5 6 5 . Storage 12 | 1 3 1 2 . . . 1 . . . . . . . . . . 1 . 2 1 . . Processor 7 | . . 1 1 . . . . . . . . . 1 1 . 1 . . . 1 . 1 . Hackware 29 | . . . . . . . . . . . . . . 2 . 1 . 3 9 8 1 5 . Protection 13 | . . 1 1 . . . 1 . . . . 2 2 . . . 1 . . 1 1 3 . Artifact . | . . . . . . . . . . . . . . . . . . . . . . . . Weapon 72 | 2 5 4 3 . 1 . 8 1 6 1 . . . 1 . 8 6 3 . 6 7 8 2 Energy Gun 20 | 1 2 4 3 . . . 2 . 1 . . . . . . 1 . . . 1 5 . . Energy Cannon 12 | . 2 . . . . . . 1 3 . . . . . . 1 . . . 1 1 1 2 Ballistic Gun 12 | 1 1 . . . . . 3 . . . . . . . . . . . . . . 7 . Ballistic Cannon . | . . . . . . . . . . . . . . . . . . . . . . . . Launcher 15 | . . . . . . . 2 . 2 1 . . . 1 . 4 3 2 . . . . . Special Weapon 7 | . . . . . . . . . . . . . . . . 1 3 . . 2 1 . . Impact Weapon . | . . . . . . . . . . . . . . . . . . . . . . . . Slashing Weapon 5 | . . . . . 1 . 1 . . . . . . . . 1 . . . 2 . . . Piercing Weapon . | . . . . . . . . . . . . . . . . . . . . . . . . Special Melee Weapon 1 | . . . . . . . . . . . . . . . . . . 1 . . . . . Unidentified Prototypes 15 | . . . 1 . 1 . 1 . 2 . . . . 1 . 2 . 1 . 3 1 . 2 Corrupted Parts 2 | . . . . . . . . . . . . . . . . 1 . . . 1 . . . System Corruption 12 | . . . . . . . . . . . . . . . . 10 . . . 2 . . . Parts Lost 68 | . 2 7 3 . . . . 1 1 1 . . 5 1 3 . 7 1 4 6 3 23 . Power 12 | . . 2 . . . . . 1 . 1 . . 1 . 1 . 1 . 1 . 1 3 . Propulsion 17 | . . 4 2 . . . . . . . . . . . . . . . . 2 . 9 . Utility 20 | . 1 . . . . . . . . . . . 2 1 1 . 3 1 2 1 . 8 . Weapon 19 | . 1 1 1 . . . . . 1 . . . 2 . 1 . 3 . 1 3 2 3 . Highest Loss Streak 9 | . 1 2 2 . . . . 1 1 1 . . 4 1 3 . 3 1 2 5 3 9 . To Critical Strikes 1 | . . . . . . . . . . . . . 1 . . . . . . . . . . Average Slot Usage (%) 80 | . 99 83 85 100 91 88 92 95 71 76 81 85 79 78 77 83 78 82 75 82 86 62 2 Engine 3 | . 14 9 8 11 11 11 9 1 . 8 . . . . . 1 . 5 . . 1 . . Core 2 | . . . . . . . . 7 8 . 9 6 5 6 6 6 9 3 . . . . . Reactor 2 | . . . . . . . . . . . . . . . . . . 1 9 9 6 3 . Wheel 2 | . 28 16 3 . . . 1 . . . . . . . . . . . . . . . . Hover 6 | . . . . . . . . . . . . . . . . 10 17 14 15 19 20 3 . Flight 12 | . . 11 29 33 33 33 33 33 18 18 18 20 20 19 20 10 . . . . . 16 . Device 14 | . 9 12 11 11 11 11 14 17 17 18 18 24 19 17 18 16 9 14 13 14 16 8 . Storage 7 | . 18 7 8 11 11 11 9 9 9 9 9 6 6 6 6 5 5 5 5 4 8 4 . Processor 4 | . . 1 3 11 11 11 . . . . . . 1 2 6 11 11 5 5 6 8 10 . Hackware 5 | . . . . . . . . . . . . . . 10 6 5 5 14 12 15 14 8 . Energy Gun 3 | . 10 22 20 22 6 . 8 8 . . . . . . . 2 . . . . 3 2 . Energy Cannon 2 | . 10 . . . . . . . 8 9 9 6 3 . . . . . . 1 3 . 2 Launcher 2 | . . . . . . . 1 7 . 5 9 6 3 5 5 2 4 3 2 . . . . Special Weapon 1 | . . . . . . . . . . . . . . . . 1 1 5 5 3 1 . . Slashing Weapon 4 | . . . . . 7 11 6 9 9 9 9 6 6 6 6 4 5 5 5 3 . . . Naked Turns 107 | . . . . . . . . . . . . . . . . . . . . . . 63 44 Heaviest Build 93 | 15 33 32 27 11 12 12 29 32 32 37 35 41 42 34 32 51 41 65 67 75 93 91 13 Greatest Support 86 | 20 20 20 32 12 12 12 33 35 35 35 35 41 41 41 37 61 61 72 72 86 86 86 5 Greatest Overweight (x) 15 | . 1 2 1 . . . 1 . 1 1 2 . 1 . 1 1 . . . 1 1 15 4 Average Overweight (x) . | . . . . . . . . . . . . . . . . . . . . . . . 1 Largest Inventory Capacity 15 | 8 15 15 15 8 8 8 10 10 10 10 10 10 10 10 10 10 10 15 15 15 15 15 5 Average Capacity 11 | 7 14 10 8 8 8 8 9 10 10 10 10 10 10 10 10 10 10 13 15 15 15 14 5 Most Carried 15 | 7 15 15 8 6 8 7 10 10 10 10 10 9 9 10 10 10 10 12 15 15 15 15 5 Average Carried 10 | 3 11 9 5 6 7 6 8 9 9 10 9 7 8 8 9 9 8 10 13 14 12 12 4 Final Capacity 15 | 8 15 5 8 8 8 8 10 10 10 10 10 10 10 10 10 10 10 15 15 15 15 5 5 Final Carried 15 | 5 15 4 6 6 7 7 10 10 10 10 10 8 6 10 9 10 10 12 15 15 15 5 4 Class Distribution -------------------- 34% | Mutant 12% | Sprinter 9% | Bothacker-Mutant 9% | Scout 8% | Scavenger-Mutant 8% | Botlord-Mutant 4% | Bothacker-Scout Dominant Class ---------------- Mutant | -10/Materials Mutant | -10/Mines Scavenger-Mutant | -9/Materials Scavenger-Mutant | -9/Mines Scavenger-Mutant | -9/Exiles Scavenger-Scout | -8/Mines Sprinter | -8/Materials Sprinter | -8/Garrison Mutant | -8/Storage Mutant | -8/Garrison Commander-Mutant | -8/Recycling Commander-Sprinter | -6/Factory Sprinter | -6/Garrison Hacker-Sprinter | -6/Factory Scout | -6/Garrison Scout | -5/Factory Scout | -5/Garrison Bothacker-Mutant | -4/Factory Botlord-Mutant | -4/Garrison Bothacker-Scout | -3/Research Hacker-Scout | -2/Research Scavenger-Mutant | -2/Garrison Mutant | -2/Testing Resources | -11 -10 -10 -9 -9 -9 -8 -8 -8 -8 -8 -8 -6 -6 -6 -6 -5 -5 -4 -4 -3 -2 -2 -2 ----------- Run | Yrd Mat Min Mat Min Exi Min Mat Gar Sto Gar Rec Fac Gar Fac Gar Fac Gar Fac Gar Res Res Gar Tes Matter Collected 5476 | 291 408 239 175 19 31 . 281 386 166 397 29 28 82 161 68 138 571 282 505 550 27 632 10 Remotely . | . . . . . . . . . . . . . . . . . . . . . . . . Salvage Created 6474 | 92 478 24 402 . . 27 531 457 230 786 . 28 169 471 210 157 635 130 334 618 150 545 . Parts 354 | 6 34 . 30 . . 3 35 35 9 48 . 1 11 16 5 4 34 13 15 28 12 15 . Haulers Intercepted 3 | . 1 . . . . . . . . . . . . 1 . 1 . . . . . . . Recyclers Shooed 1 | . . 1 . . . . . . . . . . . . . . . . . . . . . Parts Field Recycled . | . . . . . . . . . . . . . . . . . . . . . . . . Retrieved Matter . | . . . . . . . . . . . . . . . . . . . . . . . . Parts Self-Destructed . | . . . . . . . . . . . . . . . . . . . . . . . . Prevented . | . . . . . . . . . . . . . . . . . . . . . . . . Kills | -11 -10 -10 -9 -9 -9 -8 -8 -8 -8 -8 -8 -6 -6 -6 -6 -5 -5 -4 -4 -3 -2 -2 -2 ------- Run | Yrd Mat Min Mat Min Exi Min Mat Gar Sto Gar Rec Fac Gar Fac Gar Fac Gar Fac Gar Res Res Gar Tes Combat Hostiles Destroyed 142 | . 13 5 11 . . . 11 24 2 20 . . 4 2 3 . 19 3 9 6 1 9 . Melee 45 | . . . . . . . 7 6 . 10 . . 4 . 1 . 7 3 4 3 . . . Guns 33 | . 7 5 11 . . . 1 . . . . . . . . . . . . . 1 8 . Cannons 10 | . 6 . . . . . . . . 3 . . . . . . . . . 1 . . . AOE 44 | . . . . . . . 3 18 . 5 . . . . 2 . 11 . 5 . . . . Classes Destroyed 18 | 2 6 2 1 . . . 2 2 . . . . . 1 . . 1 . . . 1 . . Worker 10 | . 1 . . . . 1 2 . 3 . . . . . . . . 2 . 1 . . . Builder 4 | . . . . . . . 1 . . . . . . 1 . . . . . 1 1 . . Tunneler 2 | 2 . . . . . . . . . . . . . . . . . . . . . . . Hauler 3 | . 1 . . . . . . . . . . . . 1 . 1 . . . . . . . Recycler 6 | 1 . . 1 . . . 2 . 1 . . . . 1 . . . . . . . . . Mechanic 1 | . . . . . . . . . . . . . . 1 . . . . . . . . . Operator 5 | . 1 . . . . . 1 . 1 . . 1 . . . 1 . . . . . . . Watcher 9 | . 1 . 1 . . . 1 . 1 . . . . 1 . 1 . . . 3 . . . Swarmer 55 | . 6 . 6 . . . 6 9 . 7 . . 2 . . . 11 . 5 . . 3 . Grunt 39 | . 7 . 4 . . . 2 6 2 5 . . . . 3 . 4 . 3 1 . 2 . Brawler 3 | . . . . . . . . 1 . 2 . . . . . . . . . . . . . Duelist 4 | . . . . . . . . 3 . 1 . . . . . . . . . . . . . Sentry 18 | . . . 1 . . . 2 5 . 5 . . . 2 . . 1 . . 1 . 1 . Demolisher 1 | . . 1 . . . . . . . . . . . . . . . . . . . . . Hunter 9 | . . . . . . . 1 . . . . . 2 . . . 2 . 1 1 . 2 . Programmer 8 | . . . . . . . . . . . . . . . . . 1 3 . 3 . 1 . Heavy 1 | . . . . . . . . . . . . . . . . . . . . . 1 . . Assembled 4 | . . 4 . . . . . . . . . . . . . . . . . . . . . Best Kill Streak 13 | 2 5 4 5 . . 1 13 6 3 3 . 1 2 2 3 2 6 2 5 3 1 5 . Combat Bots Only 7 | . 3 4 5 . . . 7 6 1 3 . . 2 1 3 . 6 2 5 3 1 5 . Max Kills in Single Turn 4 | 1 1 1 1 . . 1 4 2 2 2 . 1 1 2 2 1 2 1 2 1 1 1 . Gunslinging . | . . . . . . . . . . . . . . . . . . . . . . . . Exploded 3 | . . . . . . . 3 2 . 2 . . . . 2 . 2 . 2 . . . . Melee 1 | . . . . . . . 1 1 . 1 . . 1 . 1 . 1 1 1 1 . . . Uniques/NPCs Destroyed . | . . . . . . . . . . . . . . . . . . . . . . . . Combat | -11 -10 -10 -9 -9 -9 -8 -8 -8 -8 -8 -8 -6 -6 -6 -6 -5 -5 -4 -4 -3 -2 -2 -2 -------- Run | Yrd Mat Min Mat Min Exi Min Mat Gar Sto Gar Rec Fac Gar Fac Gar Fac Gar Fac Gar Res Res Gar Tes Hostile Shots Fired 895 | . 66 32 65 2 . 3 25 46 14 32 4 9 57 24 34 2 91 26 20 79 17 212 35 Missed 347 | . 26 8 20 2 . . 9 22 9 19 . 4 24 14 18 . 39 8 8 37 8 58 14 Damage Taken 10491 | . 411 484 416 . . 24 206 298 86 138 75 40 420 84 208 44 1017 472 541 1217 410 3455 445 Core 2455 | . 72 48 85 . . 8 79 74 10 15 25 5 74 11 43 . 72 121 94 154 15 1005 445 Absorbed by Shields 347 | . . . . . . . . 24 . 5 7 . 98 . . . 25 . . 9 . 179 . Redirected to Shielding 29 | . . . . . . . . . . . . . 29 . . . . . . . . . . Ignored by Resistances 36 | . . 36 . . . . . . . . . . . . . . . . . . . . . Regen/Repaired (Parts) 550 | . . . . . . . . . 20 . . . . 78 . . . 132 . 199 121 . . Core Remaining (%) 79 | 100 . 52 . . . 76 . . . . 63 . . . 84 . 92 . 81 88 . . . Volleys Fired 390 | 7 43 17 29 . . . 4 36 22 25 . . . 11 3 2 33 11 40 60 9 36 2 Largest 4 | 2 2 2 2 . . . 3 1 1 1 . . . 1 1 1 1 1 1 1 2 4 1 Hottest 210 | 70 120 130 130 . . . 105 63 81 81 . . . 43 43 60 46 49 49 94 185 210 113 Shots Fired 533 | 14 86 29 48 . . . 9 36 22 26 . . . 11 3 2 34 11 40 60 14 86 2 Gun 248 | 14 60 29 48 . . . 8 1 . . . . . . . 1 . . . . 5 82 . Cannon 113 | . 26 . . . . . . . 20 18 . . . . . . . . . 36 7 4 2 Launcher 106 | . . . . . . . 1 35 2 8 . . . 11 3 1 34 5 6 . . . . Special 66 | . . . . . . . . . . . . . . . . . . 6 34 24 2 . . Kinetic 78 | 7 30 . . . . . 5 . . . . . . . . . . . . . . 36 . Thermal 208 | 7 56 29 48 . . . 3 1 . . . . . . . . . . . . 12 50 2 Explosive 62 | . . . . . . . 1 35 2 . . . . . . 1 12 5 6 . . . . Electromagnetic 119 | . . . . . . . . . 20 26 . . . 11 3 1 22 . . 36 . . . Robot Hit Streak 18 | 10 11 6 7 . . . 4 15 18 4 . . . 5 6 7 2 3 7 16 4 17 . Robot Miss Streak 10 | 1 4 10 10 . . . 1 2 3 1 . . . . . . 4 2 1 3 2 4 . Penetration Max . | . . . . . . . . . . . . . . . . . . . . . . . . Secondary Targets 2 | . . . . . . . . . . . . . . . . . . . . . . 2 . Max Gunslinging Chain 1 | . . . . . . . . . . . . . . . . . . . . . . 1 . Capacitor 36 | . . . . . . . . . . . . . . . . . . . . 36 . . . Shots Hit Robots 420 | 11 48 26 33 . . 1 20 28 10 26 2 1 11 5 3 4 18 20 37 54 8 54 . Core Hits 286 | 4 24 30 31 . . 1 21 37 6 21 . 1 4 7 6 2 25 18 10 15 4 19 . Critical Kills . | . . . . . . . . . . . . . . . . . . . . . . . . Critical Parts Destroyed 1 | . 1 . . . . . . . . . . . . . . . . . . . . . . Critical Strikes 13 | . 2 . 2 . . . . 1 . . . . 2 1 1 . 1 1 1 1 . . . Burn 3 | . 1 . 2 . . . . . . . . . . . . . . . . . . . . Destroy 1 | . 1 . . . . . . . . . . . . . . . . . . . . . . Sever 9 | . . . . . . . . 1 . . . . 2 1 1 . 1 1 1 1 . . . Melee Attacks 244 | . . . . . . 1 34 20 3 41 2 2 19 9 9 11 22 24 25 22 . . . Impact . | . . . . . . . . . . . . . . . . . . . . . . . . Slashing 244 | . . . . . . 1 34 20 3 41 2 2 19 9 9 11 22 24 25 22 . . . Piercing . | . . . . . . . . . . . . . . . . . . . . . . . . Sneak Attacks 20 | . . . . . . 1 5 . . 2 1 . . 1 . 1 . 1 7 1 . . . Combat Hostiles 10 | . . . . . . . . . . 2 1 . . . . . . . 7 . . . . Follow-up Attacks . | . . . . . . . . . . . . . . . . . . . . . . . . Damage Inflicted 18241 | 128 712 268 412 . . 84 1309 2379 866 1582 131 62 526 675 359 300 2040 1195 1650 1634 302 1609 18 Guns 2936 | 128 470 268 412 . . . 54 16 . . . . . . . . . . . . 108 1480 . Cannons 2396 | . 242 . . . . . . . 521 408 . . . . . . . . . 903 194 128 . Explosions 6192 | . . . . . . . 218 1798 345 425 . . . 408 234 65 1318 498 883 . . . . Melee 6659 | . . . . . . 84 1037 565 . 749 131 62 526 267 125 235 719 672 767 720 . . . Ramming 58 | . . . . . . . . . . . . . . . . . 3 25 . 11 . 1 18 Kinetic 795 | 43 229 . . . . . 12 . . . . . . . . . . . . . . 511 . Thermal 3111 | 85 483 268 412 . . . 42 16 152 209 . . . 45 . . . . . . 302 1097 . Explosive 4410 | . . . . . . . 218 1798 193 . . . . . . 65 820 433 883 . . . . Electromagnetic 3208 | . . . . . . . . . 521 624 . . . 363 234 . 498 65 . 903 . . . Impact . | . . . . . . . . . . . . . . . . . . . . . . . . Slashing 6659 | . . . . . . 84 1037 565 . 749 131 62 526 267 125 235 719 672 767 720 . . . Piercing . | . . . . . . . . . . . . . . . . . . . . . . . . Highest Corruption 10 | . 1 10 . . . . 1 1 1 1 1 . . . . 10 2 9 9 3 . 1 1 Average Corruption 2 | . 1 6 . . . . 1 1 1 1 1 . . . . 7 1 2 9 3 . 1 1 Corruption Purged 10 | . . . . . . . . . . . . . . . . 10 . . . . . . . Corruption Blocked . | . . . . . . . . . . . . . . . . . . . . . . . . Effects 85 | . . 13 . . . . 1 6 8 7 2 . . . . 8 8 5 24 . . . 3 Message Errors 15 | . . 2 . . . . . 3 1 1 . . . . . 1 2 1 2 . . . 2 Matter Fused 23 | . . 3 . . . . 1 2 3 3 1 . . . . 5 1 . 4 . . . . Heat Flow Errors 9 | . . . . . . . . . 1 . . . . . . 1 2 . 5 . . . . Energy Discharges 14 | . . 2 . . . . . . 1 2 . . . . . . 1 1 6 . . . 1 Parts Rejected 4 | . . 1 . . . . . 1 1 . . . . . . . . 1 . . . . . Data Loss (minor) 9 | . . 1 . . . . . . . . 1 . . . . . 1 . 6 . . . . Data Loss (major) 4 | . . . . . . . . . 1 . . . . . . 1 . 1 1 . . . . Misfires 4 | . . 2 . . . . . . . 1 . . . . . . 1 . . . . . . Alerts 1 | . . . . . . . . . . . . . . . . . . 1 . . . . . Weapon Failures 2 | . . 2 . . . . . . . . . . . . . . . . . . . . . Overload Shots . | . . . . . . . . . . . . . . . . . . . . . . . . Overflow Damage 979 | . . . . . . . 148 97 52 52 22 . 28 42 . 75 145 71 58 189 . . . Projectiles 103 | . . . . . . . . . 27 . . . . . . . . . . 76 . . . Explosions 220 | . . . . . . . 2 50 25 . . . . 5 . . 115 . 23 . . . . Melee 656 | . . . . . . . 146 47 . 52 22 . 28 37 . 75 30 71 35 113 . . . Knockbacks . | . . . . . . . . . . . . . . . . . . . . . . . . Impact . | . . . . . . . . . . . . . . . . . . . . . . . . Kinetic . | . . . . . . . . . . . . . . . . . . . . . . . . Secondary . | . . . . . . . . . . . . . . . . . . . . . . . . Self-Inflicted Damage 404 | . . . . . . . . 8 32 . . . . . 12 . 182 74 73 5 . . 18 Shots 14 | . . . . . . . . 1 1 . . . . . 2 . 8 1 1 . . . . Rammed 4 | . . . . . . . . . . . . . . . . . 1 1 . 1 . 1 . Targets Rammed 4 | . . . . . . . . . . . . . . . . . 1 1 . 1 . 1 . Kicked . | . . . . . . . . . . . . . . . . . . . . . . . . Crushed . | . . . . . . . . . . . . . . . . . . . . . . . . Highest Temperature 444 | 36 324 252 316 . . . 132 38 249 58 1 2 . . 10 165 406 20 246 444 231 358 14 Average Temperature 79 | 17 58 96 90 . . . 36 9 44 25 1 2 . . 8 44 76 10 76 132 91 102 10 Received Heat Transfer 1301 | . 138 194 69 . . . 54 87 18 27 30 12 . 12 81 9 99 18 45 102 . 270 36 Effects 16 | . 1 1 . . . . . . . . . . . . . . 3 . . 10 . 1 . Shutdowns 5 | . . . . . . . . . . . . . . . . . . . . 4 . 1 . Energy Bleed 3 | . . 1 . . . . . . . . . . . . . . . . . 2 . . . Interference 4 | . . . . . . . . . . . . . . . . . 2 . . 2 . . . Matter Decay 2 | . . . . . . . . . . . . . . . . . . . . 2 . . . Damage (minor) 2 | . 1 . . . . . . . . . . . . . . . 1 . . . . . . Siege Activations . | . . . . . . . . . . . . . . . . . . . . . . . . Robots Corrupted 12 | . . . . . . . . . 3 2 . . . 2 . . 1 . . 4 . . . Combat Hostiles 9 | . . . . . . . . . 2 2 . . . 2 . . 1 . . 2 . . . Parts Fried 33 | . . . . . . . . . 6 4 . . . 5 . . 5 . . 13 . . . Impact Corruptions . | . . . . . . . . . . . . . . . . . . . . . . . . Robots Melted 1 | . . . . . . . . . . . . . . . . . . . . . . 1 . Combat Hostiles 1 | . . . . . . . . . . . . . . . . . . . . . . 1 . Parts Melted 10 | . . . 3 . . . . . . . . . . . . . . . . . 1 6 . Heat Transferred 4926 | 259 1295 340 980 . . . 72 37 250 200 . . . 50 . . . . . . 259 1184 . Parts Sabotaged 1 | . . . . . . . . . . . . . . . . . . . . . . . 1 Parts Stolen . | . . . . . . . . . . . . . . . . . . . . . . . . Parts Stripped . | . . . . . . . . . . . . . . . . . . . . . . . . Power Chain Reactions 8 | . . . . . . . . . 3 2 . . . 1 1 . 1 . . . . . . Alert | -11 -10 -10 -9 -9 -9 -8 -8 -8 -8 -8 -8 -6 -6 -6 -6 -5 -5 -4 -4 -3 -2 -2 -2 ------- Run | Yrd Mat Min Mat Min Exi Min Mat Gar Sto Gar Rec Fac Gar Fac Gar Fac Gar Fac Gar Res Res Gar Tes Peak Influence 1687 | 15 239 131 446 171 . 14 357 1305 819 1404 747 333 212 320 520 271 936 738 1687 1644 961 874 1645 Initial 948 | . 9 76 50 171 . . 5 232 635 500 631 313 131 95 224 267 49 491 319 948 891 720 481 Average 648 | 5 118 81 268 171 . 12 86 853 744 817 673 303 155 203 453 142 584 560 1070 1243 914 782 1613 Maximum Alert Level 5 | . 1 . 2 . . . 1 4 3 4 3 1 1 1 2 1 3 3 5 5 3 3 5 Low Security (%) 23 | 100 93 100 31 100 . 100 91 . . . . 2 91 56 . 54 10 . . . . . . Level 1 10 | . 6 . 41 . . . 8 14 . . . 97 8 43 24 45 7 10 16 . . . . Level 2 19 | . . . 27 . . . . 17 32 31 74 . . . 75 . 46 79 16 . . . . Level 3 28 | . . . . . . . . 35 67 54 25 . . . . . 35 9 3 27 100 100 . Level 4 14 | . . . . . . . . 32 . 13 . . . . . . . . 42 68 . . . Level 5 1 | . . . . . . . . . . . . . . . . . . . 21 4 . . . High Security . | . . . . . . . . . . . . . . . . . . . . . . . . Max Security 1 | . . . . . . . . . . . . . . . . . . . . . . . 99 Squads Dispatched 36 | . 3 . 1 . . . 3 . 2 . . 2 . 3 . 2 . 5 . 8 1 . 6 Investigation 7 | . 1 . . . . . 1 . . . . 2 . . . 1 . 2 . . . . . Extermination 5 | . . . . . . . . . . . . . . . . . . 2 . 3 . . . Reinforcement 9 | . 2 . 1 . . . 1 . . . . . . 2 . 1 . . . 1 1 . . Assault 12 | . . . . . . . . . 2 . . . . . . . . . . 4 . . 6 Garrison 3 | . . . . . . . 1 . . . . . . 1 . . . 1 . . . . . Intercept . | . . . . . . . . . . . . . . . . . . . . . . . . Searches Triggered . | . . . . . . . . . . . . . . . . . . . . . . . . Construction Impeded 1 | . . . . . . . . . . . . . . 1 . . . . . . . . . Haulers Reinforced 1 | . . . . . . . . . . . . . . 1 . . . . . . . . . Active Scanning Responses . | . . . . . . . . . . . . . . . . . . . . . . . . Cargo Convoy Interrupts . | . . . . . . . . . . . . . . . . . . . . . . . . Stealth | -11 -10 -10 -9 -9 -9 -8 -8 -8 -8 -8 -8 -6 -6 -6 -6 -5 -5 -4 -4 -3 -2 -2 -2 --------- Run | Yrd Mat Min Mat Min Exi Min Mat Gar Sto Gar Rec Fac Gar Fac Gar Fac Gar Fac Gar Res Res Gar Tes Distress Signals 10 | . . . 1 . . . 3 . 3 . . . . . . . . 1 . . . . 2 Communications Jammed 144 | . . . . . . . . . . . . . . . . . . 44 . 100 . . . Distress Signals 144 | . . . . . . . . . . . . . . . . . . 44 . 100 . . . Times Spotted 391 | . 21 13 23 2 . 4 26 29 18 21 3 4 7 11 13 2 29 15 33 61 5 26 25 Peak Tracking Total 26 | . 5 4 8 2 . 4 6 5 7 5 1 3 5 8 6 1 6 4 5 8 2 12 26 Tactical Retreats 52 | . . 5 2 . . . 8 1 5 6 . . . 3 2 1 7 2 1 5 1 3 . Traps | -11 -10 -10 -9 -9 -9 -8 -8 -8 -8 -8 -8 -6 -6 -6 -6 -5 -5 -4 -4 -3 -2 -2 -2 ------- Run | Yrd Mat Min Mat Min Exi Min Mat Gar Sto Gar Rec Fac Gar Fac Gar Fac Gar Fac Gar Res Res Gar Tes Traps Triggered 44 | . 3 . . . . . 1 8 . 6 . . 1 1 . . 7 . 10 2 . 5 . Indirectly 6 | . . . . . . . . . . . . . . 1 . . 5 . . . . . . Trap Hack Attempts . | . . . . . . . . . . . . . . . . . . . . . . . . Triggered . | . . . . . . . . . . . . . . . . . . . . . . . . Disarmed . | . . . . . . . . . . . . . . . . . . . . . . . . Reprogrammed . | . . . . . . . . . . . . . . . . . . . . . . . . Reused . | . . . . . . . . . . . . . . . . . . . . . . . . Traps Extracted . | . . . . . . . . . . . . . . . . . . . . . . . . Installed . | . . . . . . . . . . . . . . . . . . . . . . . . Triggered 2 | . . . . . . . . . 2 . . . . . . . . . . . . . . Objects Rigged 3 | . . . . . . . . . . . . . . . . . . 3 . . . . . Exploded 2 | . . . . . . . . . . . . . . . . . . 2 . . . . . Machines | -11 -10 -10 -9 -9 -9 -8 -8 -8 -8 -8 -8 -6 -6 -6 -6 -5 -5 -4 -4 -3 -2 -2 -2 ---------- Run | Yrd Mat Min Mat Min Exi Min Mat Gar Sto Gar Rec Fac Gar Fac Gar Fac Gar Fac Gar Res Res Gar Tes Machines Disabled 24 | . . . . . . . . 4 2 1 . . . 1 1 1 4 2 6 . . . 2 Max in Single Turn 2 | . . . . . . . . 2 1 1 . . . 1 1 1 2 1 1 . . . 1 Garrison Relay 8 | . . . . . . . . 2 . . . . . . . . 3 . 3 . . . . Phase Generator 1 | . . . . . . . . . . . . . . . . . 1 . . . . . . Machines Repaired . | . . . . . . . . . . . . . . . . . . . . . . . . Machines Dismantled 2 | . . . . . . . . . . . . . . . . . 2 . . . . . . Machines Sabotaged . | . . . . . . . . . . . . . . . . . . . . . . . . Overloaded Fab Kills . | . . . . . . . . . . . . . . . . . . . . . . . . Hacking | -11 -10 -10 -9 -9 -9 -8 -8 -8 -8 -8 -8 -6 -6 -6 -6 -5 -5 -4 -4 -3 -2 -2 -2 --------- Run | Yrd Mat Min Mat Min Exi Min Mat Gar Sto Gar Rec Fac Gar Fac Gar Fac Gar Fac Gar Res Res Gar Tes Machines Accessed 82 | . 4 . 4 . 1 1 5 3 6 1 6 3 1 9 3 6 2 7 3 12 4 1 . Terminals 49 | . 4 . 3 . . 1 2 3 3 1 5 2 1 3 3 2 2 4 3 5 1 1 . Fabricators 6 | . . . . . . . . . . . . . . . . 2 . 1 . 3 . . . Repair Stations 8 | . . . . . . . . . 1 . . . . 2 . . . 1 . 3 1 . . Recycling Units 6 | . . . 1 . . . 1 . 1 . 1 . . 2 . . . . . . . . . Scanalyzers 5 | . . . . . . . 1 . . . . . . 1 . 1 . . . 1 1 . . Garrison Access 7 | . . . . . . . 1 . 1 . . 1 . 1 . 1 . 1 . . 1 . . Total Hacks 188 | . 9 . 11 . 1 1 13 5 11 1 10 6 3 28 6 19 4 22 5 25 7 1 . Successful 98 | . 1 . 4 . 1 1 8 1 6 1 5 4 1 14 3 10 2 13 3 15 4 1 . Failed 90 | . 8 . 7 . . . 5 4 5 . 5 2 2 14 3 9 2 9 2 10 3 . . Catastrophic 30 | . 3 . 3 . . . 3 1 1 . 3 1 . 6 1 1 1 2 1 3 . . . Database Lockouts . | . . . . . . . . . . . . . . . . . . . . . . . . Manual 37 | . 3 . 8 . 1 1 4 . 1 . 3 . . 4 . 8 . 3 . 1 . . . Terminals 117 | . 9 . 9 . . 1 4 5 5 1 9 5 3 10 6 12 4 16 5 11 1 1 . Fabricators 12 | . . . . . . . . . . . . . . . . 3 . 3 . 6 . . . Repair Stations 19 | . . . . . . . . . 4 . . . . 7 . . . 2 . 5 1 . . Recycling Units 9 | . . . 2 . . . 1 . 1 . 1 . . 4 . . . . . . . . . Scanalyzers 23 | . . . . . . . 7 . . . . . . 6 . 3 . . . 3 4 . . Garrison Access 7 | . . . . . . . 1 . 1 . . 1 . 1 . 1 . 1 . . 1 . . Terminal Hacks 46 | . 1 . 2 . 1 1 . 1 2 1 4 3 1 2 3 6 2 6 3 5 1 1 . Record 2 | . . . . . 1 . . . . . . . . . . . . . . 1 . . . Part Schematic 3 | . . . 2 . . . . . . . . . . . . 1 . . . . . . . Robot Schematic 1 | . . . . . . . . . . . . . . . . . . 1 . . . . . Prototype ID Bank 8 | . . . . . . . . . . . 3 1 . 1 . 1 . 1 . 1 . . . Open Door 3 | . . . . . . . . . 2 . . . . . . . . . 1 . . . . Open DSF 1 | . . . . . . . . . . . . . . . . . . . . . 1 . . Level Access Points 1 | . . . . . . 1 . . . . . . . . . . . . . . . . . Branch Access Points 1 | . . . . . . . . . . . . . . . . . . . . 1 . . . Emergency Access Points 6 | . . . . . . . . 1 . 1 . . . . 1 . 1 . 1 . . 1 . Repair Station Index 1 | . . . . . . . . . . . . . . . . 1 . . . . . . . Garrison Index 1 | . . . . . . . . . . . . . . . . . . 1 . . . . . Unreport Threat 4 | . . . . . . . . . . . . . . . . 2 . 2 . . . . . Locate Traps 3 | . 1 . . . . . . . . . . 1 . 1 . . . . . . . . . Registered Components 1 | . . . . . . . . . . . . . . . . . . . . 1 . . . Zone Layout 5 | . . . . . . . . . . . 1 1 . . . 1 . 1 . 1 . . . Patrol Navigation 3 | . . . . . . . . . . . . . 1 . 1 . 1 . . . . . . Security Stations 2 | . . . . . . . . . . . . . . . 1 . . . 1 . . . . Fabricator Hacks 11 | . . . . . . . . . . . . . . . . 2 . 3 . 6 . . . Network Status 2 | . . . . . . . . . . . . . . . . 1 . 1 . . . . . Load Schematic 4 | . . . . . . . . . . . . . . . . . . 1 . 3 . . . Build 5 | . . . . . . . . . . . . . . . . 1 . 1 . 3 . . . Repair Station Hacks 11 | . . . . . . . . . 2 . . . . 4 . . . 2 . 3 . . . Scan Component 7 | . . . . . . . . . 1 . . . . 3 . . . 1 . 2 . . . Repair 4 | . . . . . . . . . 1 . . . . 1 . . . 1 . 1 . . . Recycling Unit Hacks 6 | . . . 2 . . . 1 . 1 . 1 . . 1 . . . . . . . . . Report Inventory 5 | . . . 1 . . . 1 . 1 . 1 . . 1 . . . . . . . . . Retrieve Components 1 | . . . 1 . . . . . . . . . . . . . . . . . . . . Scanalyzer 16 | . . . . . . . 6 . . . . . . 6 . 1 . . . 1 2 . . Insert Component 9 | . . . . . . . 3 . . . . . . 3 . 1 . . . 1 1 . . Analyze 7 | . . . . . . . 3 . . . . . . 3 . . . . . . 1 . . Garrison Access Hacks 7 | . . . . . . . 1 . 1 . . 1 . 1 . 1 . 1 . . 1 . . Unlock Access 7 | . . . . . . . 1 . 1 . . 1 . 1 . 1 . 1 . . 1 . . Unauthorized Hacks 1 | . . . . . . . . . . . . . . . . . . 1 . . . . . Terminals 1 | . . . . . . . . . . . . . . . . . . 1 . . . . . Detonate 1 | . . . . . . . . . . . . . . . . . . 1 . . . . . Fabricators . | . . . . . . . . . . . . . . . . . . . . . . . . Repair Stations . | . . . . . . . . . . . . . . . . . . . . . . . . Recycling Units . | . . . . . . . . . . . . . . . . . . . . . . . . Scanalyzers . | . . . . . . . . . . . . . . . . . . . . . . . . Garrison Access . | . . . . . . . . . . . . . . . . . . . . . . . . Data Cores Recovered 2 | . . . . . . . 1 . . . . 1 . . . . . . . . . . . Used 1 | . . . . . . . . . . . . 1 . . . . . . . . . . . Hacking Detections 58 | . 4 . 3 . . . 3 2 2 . 5 2 1 9 3 4 2 6 1 8 3 . . Full Trace Events 9 | . . . . . . . 1 2 . . . 2 . . 1 1 . 2 . . . . . Feedback Events 1 | . . . . . . . . . . . . . . . . 1 . . . . . . . Corruption 1 | . . . . . . . . . . . . . . . . 1 . . . . . . . Feedback Blocked . | . . . . . . . . . . . . . . . . . . . . . . . . Robot Schematics Acquired 1 | . . . . . . . . . . . . . . . . . . 1 . . . . . Robots Built 9 | . . . . . . . . . . . . . . . . . . 3 . 6 . . . Authchips 3 | . . . . . . . . . . . . . . . . . . . . 3 . . . Time 498 | . . . . . . . . . . . . . . . . . . 187 . 311 . . . Total Robot Build Rating 63 | . . . . . . . . . . . . . . . . . . 21 . 42 . . . Part Schematics Acquired 10 | . . . 2 . . . 3 . . . . . . 3 . 1 . . . . 1 . . Parts Built 2 | . . . . . . . . . . . . . . . . 2 . . . . . . . Authchips . | . . . . . . . . . . . . . . . . . . . . . . . . Time 106 | . . . . . . . . . . . . . . . . 106 . . . . . . . Total Part Build Rating 12 | . . . . . . . . . . . . . . . . 12 . . . . . . . Parts Repaired 4 | . . . . . . . . . 1 . . . . 1 . . . 1 . 1 . . . Time 175 | . . . . . . . . . 38 . . . . 56 . . . 25 . 56 . . . Parts Recycled . | . . . . . . . . . . . . . . . . . . . . . . . . Recycled Matter . | . . . . . . . . . . . . . . . . . . . . . . . . Retrieved Matter . | . . . . . . . . . . . . . . . . . . . . . . . . Retrieved Components 10 | . . . 10 . . . . . . . . . . . . . . . . . . . . Parts Scanalyzed 9 | . . . . . . . 3 . . . . . . 3 . 1 . . . 1 1 . . Part Schematics Acquired 7 | . . . . . . . 3 . . . . . . 3 . . . . . . 1 . . Parts Damaged 1 | . . . . . . . . . . . . . . . . 1 . . . . . . . Bothacking | -11 -10 -10 -9 -9 -9 -8 -8 -8 -8 -8 -8 -6 -6 -6 -6 -5 -5 -4 -4 -3 -2 -2 -2 ------------ Run | Yrd Mat Min Mat Min Exi Min Mat Gar Sto Gar Rec Fac Gar Fac Gar Fac Gar Fac Gar Res Res Gar Tes Used RIF Installer 5 | . . . . . . . . 1 . 1 . . 1 . . . 1 . 1 . . . . Command Fork 1 | . . . . . . . . . . . . . . . . . 1 . . . . . . Signal Jammer 1 | . . . . . . . . . . . . . 1 . . . . . . . . . . Watcher Feeds 1 | . . . . . . . . . . . . . . . . . . . 1 . . . . Program Shield 1 | . . . . . . . . . . 1 . . . . . . . . . . . . . Robots Hacked 36 | . . . . . . . . . . . . . . . . . . 4 17 14 1 . . Non-combat 13 | . . . . . . . . . . . . . . . . . . 4 . 8 1 . . Combat 23 | . . . . . . . . . . . . . . . . . . . 17 6 . . . Robot Hacks Applied 37 | . . . . . . . . . . . . . . . . . . 4 17 15 1 . . no_distress 1 | . . . . . . . . . . . . . . . . . . . . 1 . . . find_chute 1 | . . . . . . . . . . . . . . . . . . 1 . . . . . ignore_repairs 1 | . . . . . . . . . . . . . . . . . . . . 1 . . . map_walls 1 | . . . . . . . . . . . . . . . . . . . . 1 . . . map_earth 1 | . . . . . . . . . . . . . . . . . . . . 1 . . . drop_inventory 1 | . . . . . . . . . . . . . . . . . . . . 1 . . . map_route 2 | . . . . . . . . . . . . . . . . . . 2 . . . . . mark_security 1 | . . . . . . . . . . . . . . . . . . . . 1 . . . focus_fire 1 | . . . . . . . . . . . . . . . . . . . 1 . . . . reboot_system 7 | . . . . . . . . . . . . . . . . . . . 6 1 . . . overwrite_iff 2 | . . . . . . . . . . . . . . . . . . . 2 . . . . formatsys_low 4 | . . . . . . . . . . . . . . . . . . . . 3 1 . . formatsys_high 14 | . . . . . . . . . . . . . . . . . . 1 8 5 . . . Relay Couplers Released 35 | . . . . . . . . 8 . . . . . . . . 13 . 14 . . . . Machine Destruction 32 | . . . . . . . . 8 . . . . . . . . 10 . 14 . . . . Programmers 3 | . . . . . . . . . . . . . . . . . 3 . . . . . . Attached 16 | . . . . . . . . . . . . . . . . . . 2 9 5 . . . Fabnet Peak Effective % . | . . . . . . . . . . . . . . . . . . . . . . . . Robots Rewired 19 | . . . . . . . . . . . 14 . . . . . . . 5 . . . . Allies Hacked 5 | . . . . . . . . . . . . . . . . . . 2 . 3 . . . Hacks Repelled 2 | . . . . . . . . . . . . . . . . . . 2 . . . . . Allies | -11 -10 -10 -9 -9 -9 -8 -8 -8 -8 -8 -8 -6 -6 -6 -6 -5 -5 -4 -4 -3 -2 -2 -2 -------- Run | Yrd Mat Min Mat Min Exi Min Mat Gar Sto Gar Rec Fac Gar Fac Gar Fac Gar Fac Gar Res Res Gar Tes Total Allies 53 | . . . . . . . . . 2 . 14 . . . . . . 4 18 14 1 . . Largest Group 14 | . . . . . . . . . 2 . 14 14 . . . . . 4 11 13 1 . . Highest-Rated Group 587 | . . . . . . . . . 62 . 203 202 . . . . . 170 519 587 23 . . Highest-Rated Ally 112 | . . . . . . . . . 31 . 27 27 . . . . . 48 112 56 23 . . Total Orders 31 | . . . . . . . . . . 8 2 1 4 . . 2 . 2 . 11 1 . . STAY 4 | . . . . . . . . . . . . . . . . . . 1 . 3 . . . ROAM 2 | . . . . . . . . . . . . 1 1 . . . . . . . . . . FOLLOW 4 | . . . . . . . . . . . . . . . . . . 1 . 3 . . . AID 6 | . . . . . . . . . . . . . . . . . . . . 5 1 . . PICKUP 2 | . . . . . . . . . . . 2 . . . . . . . . . . . . EXPLORE 7 | . . . . . . . . . . 4 . . 2 . . 1 . . . . . . . RETURN 6 | . . . . . . . . . . 4 . . 1 . . 1 . . . . . . . Ally Attacks 336 | . . . . . . . . . 23 . 20 4 . . . . . 22 109 158 . . . Total Damage 10327 | . . . . . . . . . 394 . 253 38 . . . . . 781 3736 5125 . . . Kills 59 | . . . . . . . . . 3 . 3 . . . . . . 3 21 29 . . . Allies Corrupted 4 | . . . . . . . . . . . . . . . . . . 1 . 3 . . . Allies Melted 1 | . . . . . . . . . . . . . . . . . . 1 . . . . . Intel | -11 -10 -10 -9 -9 -9 -8 -8 -8 -8 -8 -8 -6 -6 -6 -6 -5 -5 -4 -4 -3 -2 -2 -2 ------- Run | Yrd Mat Min Mat Min Exi Min Mat Gar Sto Gar Rec Fac Gar Fac Gar Fac Gar Fac Gar Res Res Gar Tes Robot Analysis Total . | . . . . . . . . . . . . . . . . . . . . . . . . Derelict Logs Recovered 3 | . . . . 3 . . . . . . . . . . . . . . . . . . . Drone Launches 11 | . . . . . . . . . . 5 . . 5 . . 1 . . . . . . . Drone Recoveries 7 | . . . . . . . . . . 5 . . 2 . . . . . . . . . . Exploration | -11 -10 -10 -9 -9 -9 -8 -8 -8 -8 -8 -8 -6 -6 -6 -6 -5 -5 -4 -4 -3 -2 -2 -2 ------------- Run | Yrd Mat Min Mat Min Exi Min Mat Gar Sto Gar Rec Fac Gar Fac Gar Fac Gar Fac Gar Res Res Gar Tes Turns Passed 11379 | 84 634 352 334 57 168 21 694 822 503 1286 348 90 212 351 123 575 731 747 730 1322 243 781 171 Spaces Moved 12256 | 53 430 263 402 167 477 48 777 1052 401 1060 400 158 204 527 264 852 854 728 762 1321 268 643 145 Core 264 | 2 . . . . . . . . . . 9 . . . . . . . . . . 120 133 Treads . | . . . . . . . . . . . . . . . . . . . . . . . . Legs . | . . . . . . . . . . . . . . . . . . . . . . . . Wheels 571 | 51 430 25 11 . . . 54 . . . . . . . . . . . . . . . . Hover 4480 | . . . . . . . . . . . . . . . . 420 854 728 762 1321 268 127 . Flight 6941 | . . 238 391 167 477 48 723 1052 401 1060 391 158 204 527 264 432 . . . . . 396 12 Fastest Speed 25 | 50 80 37 34 34 34 34 26 26 37 37 37 32 32 32 32 31 45 52 52 40 46 25 35 Average Speed 46 | 78 92 43 37 34 34 34 33 27 42 54 39 32 36 32 33 38 45 52 52 48 65 78 109 Slowest Speed 1240 | 80 95 120 115 34 34 34 97 37 117 117 150 32 107 32 107 117 45 52 52 108 105 1240 250 Overloaded Moves . | . . . . . . . . . . . . . . . . . . . . . . . . Propulsion Burnouts . | . . . . . . . . . . . . . . . . . . . . . . . . Robots Hopped 35 | . . . 6 4 . 3 7 . 3 . 8 . . 4 . . . . . . . . . Cave-ins Triggered . | . . . . . . . . . . . . . . . . . . . . . . . . Exploration Rate (%) 41 | 4 65 39 36 56 73 12 34 89 39 72 78 5 33 14 42 25 73 12 80 36 12 53 15 Regions Visited 23 Branch Regions 7 Pre-discovered Areas 1 | . . . . . 1 . . . . . . . . . . . . . . . . . . Known Exits Taken 11 | . . . 1 1 1 1 1 . 1 . . 1 . 1 . 1 . 1 . . 1 . . Unknown Exits Taken 5 | 1 1 1 . . . . . . . . 1 . . . . . . . . 1 . . . Scrap Searched 1 | . . . . 1 . . . . . . . . . . . . . . . . . . . Spaces Dug 66 | . . . . . . . 19 . 3 3 . 1 7 5 4 8 . 10 . 5 1 . . Terrain Destroyed 702 | . . . . . . . 32 235 29 10 . 1 7 12 11 14 151 117 64 5 4 10 . Melee 65 | . . . . . . . 19 . 3 3 . 1 7 5 4 8 . 10 . 5 . . . Projectile 14 | . . . . . . . . . . . . . . . . . . . . . 4 10 . AOE 623 | . . . . . . . 13 235 26 7 . . . 7 7 6 151 107 64 . . . . Terrain Rammed 1 | . . . . . . . . . . . . . . . . . . . . . . . 1 Walls Destroyed . | . . . . . . . . . . . . . . . . . . . . . . . . Machines Disabled . | . . . . . . . . . . . . . . . . . . . . . . . . Actions | -11 -10 -10 -9 -9 -9 -8 -8 -8 -8 -8 -8 -6 -6 -6 -6 -5 -5 -4 -4 -3 -2 -2 -2 --------- Run | Yrd Mat Min Mat Min Exi Min Mat Gar Sto Gar Rec Fac Gar Fac Gar Fac Gar Fac Gar Res Res Gar Tes Total 17152 | 78 584 470 533 162 484 49 1161 1527 702 1695 579 195 320 683 286 1089 1133 1062 1059 1974 321 851 155 Wait 3096 | 4 68 145 59 . . . 293 256 260 436 44 28 66 115 10 156 183 274 117 496 13 73 . Move 12167 | 52 429 262 389 158 476 41 763 1051 395 1059 383 158 203 518 263 852 853 727 761 1320 267 642 145 Hop 34 | . . . 6 4 . 3 6 . 3 . 8 . . 4 . . . . . . . . . Pick Up 137 | 7 17 7 10 . 2 2 14 4 2 3 1 1 2 5 . 12 10 3 14 10 6 5 . Fast Attach 138 | 6 6 4 11 . 1 . 8 3 5 3 1 1 1 6 . 17 . 11 5 21 7 17 4 Attach 107 | 1 1 11 6 . . . 3 2 1 . . 4 4 5 1 6 9 3 8 15 9 18 . Detach 58 | . . 6 2 . 2 . 5 1 1 . . 1 . 4 . 6 1 2 . 7 3 16 1 Swap 75 | . 5 11 5 . . . 13 2 5 17 1 . 5 1 . 3 . 1 3 1 2 . . Drop 179 | 1 15 7 16 . 3 2 18 9 5 5 2 . 2 5 . 24 4 5 15 21 5 13 2 Fire 390 | 7 43 17 29 . . . 4 36 22 25 . . . 11 3 2 33 11 40 60 9 36 2 Melee 244 | . . . . . . 1 34 20 3 41 2 2 19 9 9 11 22 24 25 22 . . . Ram 5 | . . . . . . . . . . . . . . . . . 1 1 . 1 . 1 1 Kick . | . . . . . . . . . . . . . . . . . . . . . . . . Crush . | . . . . . . . . . . . . . . . . . . . . . . . . Escape Stasis 373 | . . . . . . . . 143 . 106 . . 18 . . . 5 . 71 . . 30 . Rewire 137 | . . . . . . . . . . . 137 . . . . . . . . . . . . Trap . | . . . . . . . . . . . . . . . . . . . . . . . . Miscellaneous 12 | . . . . . . . . . . . . . . . . . 12 . . . . . . Route ------- -11/Scrapyard -10/Materials (discovered 3 exits: *Mat / [*Min x2]) -10/Mines -9/Materials -9/Mines (discovered 2 exits: Mat / *Exi) -9/Exiles (discovered 2 exits: *Min x2) -8/Mines (discovered 2 exits: *Mat x2) -8/Materials (discovered 3 exits: [*Fac] / *Sto / Gar) -8/Garrison (discovered 3 exits: *Sto x3) -8/Storage -8/Garrison (discovered 3 exits: *Rec x3) -8/Recycling -6/Factory -6/Garrison -6/Factory (discovered 3 exits: *Fac / [*Low] / Gar) -6/Garrison -5/Factory (discovered 3 exits: *Fac / [*Upp] / Gar) -5/Garrison (discovered 2 exits: *Fac x2) -4/Factory (discovered 2 exits: [*Upp] / Gar) -4/Garrison (discovered 4 exits: *Res x3 / [*Fac]) -3/Research (discovered 3 exits: *Res / Qua x2) -2/Research -2/Garrison (discovered 3 exits: *Tes x3) -2/Testing History --------- Turn | Location | Event 6 | -11/Scrapyard | Discovered new exit (range 15) 85 | -11/Scrapyard | Entered Materials 318 | -10/Materials | Build established: Mutant 466 | -10/Materials | Discovered new exit (range 16) 563 | -10/Materials | Discovered new exit (range 11) 695 | -10/Materials | Discovered new exit (range 11) 719 | -10/Materials | Entered Mines 720 | -10/Mines | Assembled infested the area 725 | -10/Mines | Assisted by a Guerilla fighting off Assembled 922 | -10/Mines | System corruption reached 10% 1068 | -10/Mines | Discovered new exit (range 9) 1071 | -10/Mines | Entered Materials 1071 | -9/Materials | Evolved 2 slots: Propulsion x1, Utility x1 1373 | -9/Materials | Discovered new exit (range 11) 1405 | -9/Materials | Identified exit to Mines 1405 | -9/Materials | Entered Mines 1408 | -9/Mines | Identified exit to Materials 1432 | -9/Mines | Learned location of 1 exit from Materials 1438 | -9/Mines | Identified exit to Exiles 1461 | -9/Mines | Deemed a non-threat by the Exiles lab entrance 1462 | -9/Mines | Build established: Scavenger-Mutant 1462 | -9/Mines | Entered Exiles 1468 | -9/Exiles | Discovered new exit (range 15) 1472 | -9/Exiles | Met 8R-AWN 1476 | -9/Exiles | Met EX-HEX 1490 | -9/Exiles | Met EX-DEC 1492 | -9/Exiles | Learned location of Zion (-6) 1499 | -9/Exiles | Met EX-BIN 1503 | -9/Exiles | Aligned with FarCom system 1504 | -9/Exiles | Given EX-Vault access code 1511 | -9/Exiles | Opened EX-Vault 1514 | -9/Exiles | Found Prototype Slashing Weapon 1514 | -9/Exiles | Identified Longsword +1 1523 | -9/Exiles | Warned to stay clear of 0b10 Research branches 1585 | -9/Exiles | Discovered new exit (range 14) 1590 | -9/Exiles | Identified exit to Mines 1630 | -9/Exiles | Left Exiles lab with Longsword +1 1630 | -9/Exiles | Entered Mines 1651 | -8/Mines | Entered Materials 1651 | -8/Materials | Evolved 2 slots: Propulsion x1, Weapon x1 1652 | -8/Materials | Identified exit to Storage 1993 | -8/Materials | Build established: Sprinter 2274 | -8/Materials | Discovered new exit (range 10) 2283 | -8/Materials | Garrison activated, responded to threat 2307 | -8/Materials | Identified exit to Garrison 2318 | -8/Materials | Destroyed 7 combat bots 2345 | -8/Materials | Entered Garrison 2417 | -8/Garrison | Triggered checkpoint 2436 | -8/Garrison | Garrison Relay disabled 2461 | -8/Garrison | Triggered checkpoint 2467 | -8/Garrison | Triggered checkpoint 2545 | -8/Garrison | Triggered checkpoint 2586 | -8/Garrison | Discovered exit to Storage (range 11) 2589 | -8/Garrison | Installed Relay Interface Framework 2595 | -8/Garrison | Triggered checkpoint 2607 | -8/Garrison | Garrison Relay disabled 2710 | -8/Garrison | Discovered exit to Storage (range 12) 2739 | -8/Garrison | Triggered checkpoint 2801 | -8/Garrison | Triggered checkpoint 2955 | -8/Garrison | Discovered exit to Storage (range 13) 2971 | -8/Garrison | Triggered checkpoint 3167 | -8/Garrison | Entered Storage 3250 | -8/Storage | Repaired Adv. Weight Redist. System 3354 | -8/Storage | Build established: Mutant 3596 | -8/Storage | Met a pair of Derelict thieves 3670 | -8/Storage | Identified exit to Garrison 3670 | -8/Storage | Entered Garrison 3728 | -8/Garrison | Triggered checkpoint 3728 | -8/Garrison | Triggered checkpoint 4022 | -8/Garrison | Triggered checkpoint 4072 | -8/Garrison | Discovered new exit (range 15) 4260 | -8/Garrison | Discovered new exit (range 9) 4268 | -8/Garrison | Spotted B-75 Beast 4268 | -8/Garrison | Spotted B-75 Beast 4566 | -8/Garrison | Triggered checkpoint 4650 | -8/Garrison | Triggered checkpoint 4901 | -8/Garrison | Expanded RIF knowledge: Program Shield 4950 | -8/Garrison | Discovered new exit (range 8) 4956 | -8/Garrison | Entered Recycling 5234 | -8/Recycling | Discovered new exit (range 12) 5304 | -8/Recycling | Build established: Commander-Mutant 5304 | -8/Recycling | Entered Factory 5304 | -6/Factory | Accompanied by 14 allies 5304 | -6/Factory | Evolved 4 slots: Propulsion x1, Utility x3 5394 | -6/Factory | Identified exit to Garrison 5394 | -6/Factory | Entered Garrison 5424 | -6/Garrison | Lost 8 allies 5535 | -6/Garrison | Expanded RIF knowledge: Signal Jamming 5547 | -6/Garrison | Lost 4 parts (1p1u2w) 5553 | -6/Garrison | Spotted B-75 Beast 5558 | -6/Garrison | Triggered checkpoint 5603 | -6/Garrison | Discovered new exit (range 8) 5606 | -6/Garrison | Entered Factory 5625 | -6/Factory | Lost 3 allies 5697 | -6/Factory | Repaired Nuclear Pulse Array 5881 | -6/Factory | Discovered new exit (range 16) 5930 | -6/Factory | Garrison activated, responded to threat 5953 | -6/Factory | Identified exit to Garrison 5955 | -6/Factory | Discovered new exit (range 15) 5957 | -6/Factory | Entered Garrison 6058 | -6/Garrison | Learned Factory security intel 6060 | -6/Garrison | Spotted B-75 Beast 6063 | -6/Garrison | Triggered checkpoint 6063 | -6/Garrison | Triggered checkpoint 6078 | -6/Garrison | Discovered new exit (range 8) 6080 | -6/Garrison | Entered Factory 6080 | -5/Factory | Evolved 2 slots: Power x1, Utility x1 6095 | -5/Factory | Lost 3 parts (1p1u1w) 6098 | -5/Factory | Discovered new exit (range 19) 6231 | -5/Factory | Fabricated Linear Gravjet? 6300 | -5/Factory | System corruption reached 10% 6618 | -5/Factory | Discovered new exit (range 5) 6655 | -5/Factory | Identified exit to Garrison 6655 | -5/Factory | Entered Garrison 6669 | -5/Garrison | Triggered checkpoint 6684 | -5/Garrison | Garrison Relay disabled 6732 | -5/Garrison | Triggered checkpoint 6732 | -5/Garrison | Triggered checkpoint 6733 | -5/Garrison | Build established: Scout 6889 | -5/Garrison | Phase Generator disabled 7050 | -5/Garrison | Garrison Relay disabled 7060 | -5/Garrison | Expanded RIF knowledge: Command Fork 7070 | -5/Garrison | Triggered checkpoint 7143 | -5/Garrison | Lost 3 parts (2u1w) 7155 | -5/Garrison | Discovered new exit (range 3) 7196 | -5/Garrison | Triggered checkpoint 7310 | -5/Garrison | Garrison Relay disabled 7340 | -5/Garrison | Discovered new exit (range 8) 7386 | -5/Garrison | Entered Factory 7386 | -4/Factory | Evolved 2 slots: Propulsion x1, Utility x1 7429 | -4/Factory | Repaired Gravmag Array 7627 | -4/Factory | Discovered new exit (range 6) 7822 | -4/Factory | Fabricated L-61 Swordsman? 7837 | -4/Factory | Build established: Bothacker-Mutant 8128 | -4/Factory | Identified exit to Garrison 8133 | -4/Factory | Entered Garrison 8160 | -4/Garrison | Garrison Relay disabled 8171 | -4/Garrison | Triggered checkpoint 8315 | -4/Garrison | Found embedded Infiltrators 8350 | -4/Garrison | Spotted B-86 Titan 8355 | -4/Garrison | Triggered checkpoint 8359 | -4/Garrison | Triggered checkpoint 8373 | -4/Garrison | Triggered checkpoint 8375 | -4/Garrison | Allies destroyed B-86 Titan 8423 | -4/Garrison | Triggered checkpoint 8448 | -4/Garrison | Garrison Relay disabled 8461 | -4/Garrison | Triggered checkpoint 8468 | -4/Garrison | Discovered new exit (range 5) 8516 | -4/Garrison | Lost 3 allies 8534 | -4/Garrison | Discovered new exit (range 13) 8584 | -4/Garrison | Build established: Botlord-Mutant 8621 | -4/Garrison | Triggered checkpoint 8665 | -4/Garrison | Expanded RIF knowledge: Watcher Feeds 8676 | -4/Garrison | Discovered new exit (range 11) 8697 | -4/Garrison | Triggered checkpoint 8705 | -4/Garrison | Garrison Relay disabled 8717 | -4/Garrison | Learned Research security intel 8773 | -4/Garrison | Triggered checkpoint 8788 | -4/Garrison | Discovered new exit (range 17) 8793 | -4/Garrison | Triggered checkpoint 8863 | -4/Garrison | Entered Research 8863 | -3/Research | Accompanied by 10 allies 8863 | -3/Research | Evolved 2 slots: Utility x2 8934 | -3/Research | Found Prototype Protection 8934 | -3/Research | Identified Centrium Heavy Armor Plating 9143 | -3/Research | First assault squad dispatched 9254 | -3/Research | P-80 Master assimilated allied Rainmaker 7a 9316 | -3/Research | Lost 9 allies 9462 | -3/Research | Found Quantum Capacitor 9485 | -3/Research | Identified exit to Quarantine 9565 | -3/Research | Repaired Linear Gravjet 9873 | -3/Research | Build established: Bothacker-Scout 9895 | -3/Research | Discovered new exit (range 31) 9966 | -3/Research | Fabricated L-61 Swordsman (x3) 9969 | -3/Research | Fabricated L-61 Swordsman (x3) 10150 | -3/Research | P-80 Master assimilated allied Swordsman 8f 10166 | -3/Research | P-80 Master assimilated allied Swordsman 8c 10185 | -3/Research | Entered another Research area 10185 | -2/Research | Evolved 2 slots: Utility x1, Weapon x1 10200 | -2/Research | Lost 4 allies 10215 | -2/Research | Lost 5 parts (1n1u3w) 10223 | -2/Research | Build established: Bothacker-Mutant 10348 | -2/Research | Lost 3 parts (1p2w) 10421 | -2/Research | Identified exit to Garrison 10428 | -2/Research | Entered Garrison 10569 | -2/Garrison | Lost 9 parts (2p4n3u) 10589 | -2/Garrison | Triggered checkpoint 10659 | -2/Garrison | Lost 4 parts (1p3u) 10664 | -2/Garrison | Triggered checkpoint 10869 | -2/Garrison | Build established: Scavenger-Mutant 10894 | -2/Garrison | Discovered new exit (range 14) 10938 | -2/Garrison | Identified exit to Testing 11058 | -2/Garrison | Triggered checkpoint 11094 | -2/Garrison | Triggered checkpoint 11105 | -2/Garrison | Discovered exit to Testing (range 14) 11146 | -2/Garrison | Released all parts (13) 11177 | -2/Garrison | Lost 9 parts (4n2u3w) 11189 | -2/Garrison | Discovered exit to Testing (range 15) 11195 | -2/Garrison | Spotted Executioner 11203 | -2/Garrison | Core integrity fell below 50% 11209 | -2/Garrison | Entered Testing 11210 | -2/Testing | Maximum security lockdown engaged 11260 | -2/Testing | Found Prototype Energy Cannon 11260 | -2/Testing | Identified Cld. Nova Cannon 11355 | -2/Testing | Core integrity fell below 20% 11380 | -2/Testing | Destroyed by G-73 Enforcer with Phase Gun Last Messages --------------- payload. 11367_ G-73 Enforcer unfolds itself. 11367_ L-61 Swordsman unfolds itself. 11367_ G-73 Enforcer unfolds itself. 11367_ E-15 Imp unfolds itself. 11367_ C-30 ARC bursts open, deploying its payload. 11367_ G-73 Enforcer unfolds itself. 11367_ L-61 Swordsman unfolds itself. 11367_ G-73 Enforcer unfolds itself. 11367_ M-36 Artificer unfolds itself. 11367_ C-30 ARC bursts open, deploying its payload. 11367_ G-73 Enforcer unfolds itself. 11371_ E-15 Imp destroyed. 11372_ Acquired Cesium-ion Thruster. 11377_ Cesium-ion Thruster blown off. 11377_ E-15 Imp destroyed. 11378_ Acquired Cesium-ion Thruster. 11380_ Acquired 10 matter. Map ----- +----------------------------------------------------+ | ?????????????????????????????????????????????????? | | ?????????????????????????????????????????????????? | | ?????????????????????????????????????????????????? | | ?????????????????????????????????????????????????? | | ?????????????????????????????????????????????????? | | ?????????????????????????????????????????????????? | | ?????????????????????????????????????????????????? | | ?????????????????????????????????????????????????? | | ?????????????????????????????????????????????????? | | ?????????????????????????????????????????????????? | | ?????????????????????????????????????????????????? | | ?????????????????????????????????????????????????? | | ??????????????????o??????????????????????????????? | | ?????????????????????????????????????????????????? | | ???????????????????????????????#?????????????????? | | ?????????????????????????????? #?????????????????? | | ?????????????????????????????? #?????????????????? | | ????????????????????????????? #?????????????????? | | ????????????????????????????? #?????????????????? | | ???????????????????????????? #?????????????????? | | ???????????????????????????? #?????????????????? | | ??????????????????????????? #?????????????????? | | ???????????????????????#+## #?????????????????? | | ###????????????????????# #?????????????????? | | ""#????????????????????# #?????????????????? | | T"######################!@]= #?????????????????? | | ll =]= #?????????????????? | | p % g ]= #?????????????????? | | wp lgl #?????????????????? | | p gggggm w ????????????? | | #+###### g##########################???????????? | | ???# #????????????????????????????????????? | | """ #?# #????????????????????????????????????? | | T"" #?# #????????????????????????????????????? | | #?# "" #????????????????????????????????????? | | #?#"%%"#????????????????????????????????????? | | """ +? ""%#????????????????????????????????????? | | """ ####/#/#????????????????????????????????????? | | """ #?? " ????????????????????????????????????? | | ??? #?? ????????????????????????????????????? | | ????#??? """ "???????????????????????????????????? | | ???????? """ ????????????????????????????????????? | | ???????? ??? ????????????????????????????????????? | | ?????????????????????????????????????????????????? | | ?????????????????????????????????????????????????? | | ?????????????????????????????????????????????????? | | ?????????????????????????????????????????????????? | | ?????????????????????????????????????????????????? | | ?????????????????????????????????????????????????? | | ?????????????????????????????????????????????????? | +----------------------------------------------------+ Best States ------------- Heat Dissipation 68 Energy Generation 46 Energy Capacity 820 Matter Stores 350 Matter Capacity 400 Sight Range 20 Robot Scan Range 14 Terrain Scan Density 10 ECM Strength 1 Power Amplification 30 Additional Mass Support 12 EM Shielding 4 Corruption Containment 12 Armor Coverage 600 Resistance: EX 25 Propulsion Shielding 33 Utility Shielding 66 Evasion (%) 71 Targeting Accuracy 8 Core Analysis 6 Particle Charging 20 Offensive Hacking 12 Defensive Hacking 20 Relay Coupler Types 3 Relay Coupler Value 93 Authchip Count 7 Item Schematics ----------------- Hcp. Storage Unit | -9/Materials | Hacked Grenade Launcher | -9/Materials | Hacked Flight Unit | -8/Materials | Scanalyzed ECM Suite | -8/Materials | Scanalyzed Hcp. Matter Pod | -8/Materials | Scanalyzed Nuclear Pulse Array | -6/Factory | Scanalyzed Lyr. Light Armor Plating | -6/Factory | Scanalyzed Imp. Utility Shielding | -6/Factory | Scanalyzed Remote Datajack | -5/Factory | Hacked Adv. Signal Interpreter | -2/Research | Scanalyzed Robot Schematics ------------------ L-61 Swordsman | -4/Factory | Hacked Fabricated ------------ Linear Gravjet | x2 | -5/Factory | Preloaded L-61 Swordsman | x3 | -4/Factory L-61 Swordsman | x3 | -3/Research | Authchip L-61 Swordsman | x3 | -3/Research | Authchip Alien Tech Used ----------------- None Achievements -------------- Watch This! Challenges ------------ None Game ------ Seed ConstructGatlingClaymores Manual? 0 Play Time 04:48:59 Cumulative 143.0 hours Start 2024.07.04 @ 23:59:15 End 2024.07.05 @ 21:57:44 Sessions 5 Manual Loads 0 Difficulty Rogue Special Mode None Game No. 116 Rogue 77 Adventurer 32 Explorer 7 Win Type - Total 1 Types 1/0/0/0/0/0/0/0/0 Lore% 40 Gallery% 69 Achievement% 53 Wizard Run 0 Options --------- Layout 2 ASCII 0 Keyboard 0 Movement Numpad Keybinds 0 Fullscreen 2 Font 24/Smallcaps Map View 50x44 Zoom Use 0% Tactical HUD 1 Map Filters NONE Filters NONE Steam SD RUN: ec315297-496c-44d7-915c-e387d66e2b51